Cogmind - Beta 13 @@@ ROGUE MODE // 2024.06.03 @ 14:52:21 Player: UberDoot Result: Destroyed by Cetus Guard with Advanced KE Penetrator Performance ------------- Evolutions (4) 2000 Regions Visited (11) 2200 Robots Destroyed (95) 475 Value Destroyed (3151) 3151 Prototype IDs (12) 240 Alien Tech Used (0) 0 Bonus (391) 391 TOTAL SCORE: 8457 Bonus ------- High Alert Combat Kills 11 Follower Combat Kills 680 Friendly Fire -300 Cogmind --------- Core Integrity 0/850 Matter 37/300 Energy 100/100 System Corruption 2% Temperature Cool (0) Movement Core (750) Ox14 Location -6/Cetus Parts ------- > --- POWER (2) -------- (None) > --- PROPULSION (5) --- (None) > --- UTILITY (5) ------ High-capacity Storage Unit Advanced Visual Processing Unit High-powered Tractor Beam > --- WEAPON (3) ------- Mini Assault Cannon > --- INVENTORY (20) --- Improved Deuterium Engine Improved Hover Unit Improved Sensor Array Kinecellerator Reaction Control System Force Field High-powered Tractor Beam Power Sword Peak State ------------ > --- POWER ------------ Improved Deuterium Engine F-cell Engine > --- PROPULSION ------- Gravmag System Gravmag Array Gravmag Array > --- UTILITY ---------- Advanced Heat Sink High-capacity Storage Unit Advanced Signal Interpreter Improved Light Armor Plating Force Field > --- WEAPON ----------- Heavy Beamcaster Gauss Rifle Flak Gun > --- INVENTORY -------- Improved Deuterium Engine Light Angular Momentum Engine Wheel Improved Hover Unit Gravmag System Advanced Heat Sink Improved Sensor Array Improved Targeting Computer Kinecellerator Kinecellerator Kinecellerator Improved Light Armor Plating Improved Light Armor Plating Makeshift Hacking Suite High-powered Tractor Beam High-powered Tractor Beam Flak Gun Mini Assault Cannon Long-range Missile Launcher Power Sword [Rating: 74] Favorites ----------- Power F-cell Engine Engine F-cell Engine Power Core Light Nuclear Core Propulsion Light Treads Treads Light Treads Leg Aluminum Leg Wheel Wheel Hover Unit Gravmag Array Utility Large Storage Unit Device Improved Sensor Array Storage Large Storage Unit Processor Improved Signal Interpreter Hackware Hacking Suite Protection Hardened Light Armor Plating Weapon Heavy Battle Rifle Energy Gun Medium Laser Energy Cannon Compact Ion Cannon Ballistic Gun Heavy Battle Rifle Ballistic Cannon Light Cannon Launcher Long-range Missile Launcher Impact Weapon Heavy Mace Slashing Weapon Great Axe Build | -11 -10 -10 -10 -9 -8 -7 -7 -7 -6 -6 -6 ------- Run | Yrd Mat Min Exi Min Mat Fac Low Low Fac Ext Cet Slots Evolved 8 | . . . . . 4 2 . . 2 . . Power 1 | . . . . . . . . . 1 . . Propulsion 3 | . . . . . 2 1 . . . . . Utility 3 | . . . . . 2 1 . . . . . Weapon 1 | . . . . . . . . . 1 . . Parts Attached 162 | 9 14 1 . 3 48 9 8 6 29 22 13 Power 17 | 1 . 1 . 1 7 1 . . 3 2 1 Engine 8 | 1 . 1 . . 3 . . . 3 . . Core 9 | . . . . 1 4 1 . . . 2 1 Reactor . | . . . . . . . . . . . . Propulsion 49 | 4 4 . . . 22 3 2 3 8 2 1 Treads 19 | 2 4 . . . 10 . . . 3 . . Leg 12 | 2 . . . . 6 . 1 2 1 . . Wheel 9 | . . . . . 6 . 1 1 . . 1 Hover 9 | . . . . . . 3 . . 4 2 . Flight . | . . . . . . . . . . . . Utility 52 | 2 6 . . 1 10 3 4 1 8 10 7 Device 23 | 1 . . . . 8 . 1 . 4 5 4 Storage 6 | 1 3 . . . . . . 1 1 . . Processor 6 | . . . . . . 1 2 . 1 1 1 Hackware 4 | . . . . . . 1 1 . 1 1 . Protection 13 | . 3 . . 1 2 1 . . 1 3 2 Artifact . | . . . . . . . . . . . . Weapon 44 | 2 4 . . 1 9 2 2 2 10 8 4 Energy Gun 12 | 1 1 . . . 6 . . . 2 2 . Energy Cannon 1 | . . . . . . . . . 1 . . Ballistic Gun 16 | 1 2 . . . 2 . . 2 2 5 2 Ballistic Cannon 8 | . 1 . . 1 . 1 1 . 3 . 1 Launcher 2 | . . . . . . . . . . 1 1 Special Weapon . | . . . . . . . . . . . . Impact Weapon 1 | . . . . . . 1 . . . . . Slashing Weapon 4 | . . . . . 1 . 1 . 2 . . Piercing Weapon . | . . . . . . . . . . . . Special Melee Weapon . | . . . . . . . . . . . . Unidentified Prototypes 3 | . . . . . . 1 . . 2 . . Parts Lost 56 | . . 1 . 3 13 5 5 . 8 2 19 Power 10 | . . 1 . 1 3 1 1 . . . 3 Propulsion 21 | . . . . . 5 4 1 . 6 1 4 Utility 13 | . . . . 1 2 . 2 . 1 1 6 Weapon 12 | . . . . 1 3 . 1 . 1 . 6 Highest Loss Streak 20 | . . 1 . 2 4 4 5 . 6 1 20 To Critical Strikes 2 | . . . . . . . . . . . 2 Average Slot Usage (%) 87 | . 95 98 100 97 97 86 55 82 86 86 59 Engine 7 | . 14 13 14 8 3 2 . . 12 9 3 Core 2 | . . . . 3 5 . 3 . . 2 3 Treads 12 | . 21 28 28 28 21 15 2 . 6 . . Leg 4 | . 6 . . . 4 . 1 17 3 . . Wheel 3 | . . . . . 8 . 2 11 1 . . Hover 5 | . . . . . . 21 . . 9 20 11 Device 10 | . 2 . . . 17 11 11 7 9 9 6 Storage 8 | . 14 14 14 14 9 7 2 6 6 6 6 Processor 6 | . . . . . . 6 11 15 13 10 9 Hackware 1 | . . . . . . 2 6 7 . 1 . Protection 5 | . 7 14 14 14 9 7 2 . 1 3 2 Energy Gun 5 | . 14 14 14 14 8 . . . 1 4 . Ballistic Gun 9 | . 13 14 14 7 5 . . 14 16 14 10 Naked Turns . | . . . . . . . . . . . . Heaviest Build 92 | 14 51 34 32 35 44 42 33 29 81 86 92 Greatest Support 92 | 40 46 46 46 46 92 80 20 50 49 50 50 Greatest Overweight (x) 25 | 4 1 . . . 4 1 4 2 25 1 3 Average Overweight (x) . | . . . . . . . . 1 1 1 1 Largest Inventory Capacity 20 | 8 20 15 15 15 15 15 15 15 20 20 20 Average Capacity 15 | 7 13 15 15 15 15 15 9 14 19 20 20 Most Carried 20 | 7 15 15 14 14 15 15 15 14 20 20 19 Average Carried 14 | 4 11 14 14 13 14 14 9 12 19 19 14 Final Capacity 20 | 8 15 15 15 15 15 15 5 15 20 20 20 Final Carried 20 | 7 15 14 14 13 15 15 5 14 20 20 8 Class Distribution -------------------- 34% | Mutant 23% | Scavenger-Mutant 21% | Scavenger-Skirmisher 6% | Scavenger-Tank 4% | Scavenger-Assassin 3% | Skirmisher Dominant Class ---------------- Mutant | -10/Materials Mutant | -10/Mines Mutant | -10/Exiles Mutant | -9/Mines Scavenger-Mutant | -8/Materials Scavenger-Mutant | -7/Factory Mutant | -7/Lower Caves Scavenger-Skirmisher | -7/Lower Caves Scavenger-Skirmisher | -6/Factory Scavenger-Tank | -6/Extension Scavenger-Tank | -6/Cetus Resources | -11 -10 -10 -10 -9 -8 -7 -7 -7 -6 -6 -6 ----------- Run | Yrd Mat Min Exi Min Mat Fac Low Low Fac Ext Cet Matter Collected 3274 | 314 170 113 . 54 918 85 84 98 594 778 66 Remotely 142 | . . . . . . . . . . 76 66 Salvage Created 3905 | 154 238 130 . 50 1576 98 90 118 751 628 72 Parts 190 | 5 19 11 . 2 85 1 5 1 33 26 2 Haulers Intercepted 2 | . . . . . . 1 . . . 1 . Recyclers Shooed 5 | . . . . . 3 . . . 2 . . Parts Field Recycled . | . . . . . . . . . . . . Retrieved Matter . | . . . . . . . . . . . . Parts Self-Destructed 5 | . . . . . . . 5 . . . . Prevented . | . . . . . . . . . . . . Kills | -11 -10 -10 -10 -9 -8 -7 -7 -7 -6 -6 -6 ------- Run | Yrd Mat Min Exi Min Mat Fac Low Low Fac Ext Cet Combat Hostiles Destroyed 66 | . 7 5 . 1 28 1 4 . 9 9 2 Melee 11 | . . . . . 8 1 2 . . . . Guns 44 | . 7 5 . 1 13 . . . 9 8 1 Cannons 9 | . . . . . 7 . 1 . . . 1 AOE 1 | . . . . . . . . . . 1 . Classes Destroyed 13 | 2 4 . . . 3 1 . . 1 1 1 Worker 9 | . 1 . . . 3 . . . 5 . . Builder 1 | . . . . . . . . . . 1 . Tunneler 3 | 3 . . . . . . . . . . . Hauler 2 | . . . . . . 1 . . . 1 . Recycler 7 | 1 . . . . 3 . . . 2 1 . Operator 1 | . . . . . 1 . . . . . . Watcher 5 | . 1 . . . 3 . . . . . 1 Swarmer 14 | . 3 3 . . 4 . 4 . . . . Grunt 33 | . 4 2 . 1 17 1 . . 4 4 . Duelist 1 | . . . . . 1 . . . . . . Sentry 14 | . . . . . 6 . . . 3 5 . Programmer 2 | . . . . . . . . . 2 . . Cetus Guard 2 | . . . . . . . . . . . 2 Decomposer 1 | . . . . . . . . 1 . . . Savage 1 | . . . . . . . . . . . 1 Best Kill Streak 7 | 2 3 3 . 1 4 1 4 . 7 4 3 Combat Bots Only 4 | . 2 3 . 1 4 1 4 . 3 4 2 Max Kills in Single Turn 1 | 1 1 1 . 1 1 1 1 1 1 1 1 Gunslinging . | . . . . . . . . . . . . Exploded 1 | . . . . . . . . . . 1 . Melee 1 | . . . . . 1 1 1 . . . . Uniques/NPCs Destroyed . | . . . . . . . . . . . . Combat | -11 -10 -10 -10 -9 -8 -7 -7 -7 -6 -6 -6 -------- Run | Yrd Mat Min Exi Min Mat Fac Low Low Fac Ext Cet Hostile Shots Fired 898 | . 44 59 . 46 163 97 63 . 113 184 129 Missed 266 | . 21 16 . 13 30 33 11 . 42 63 37 Damage Taken 9074 | . 226 431 . 523 1984 698 766 . 868 1093 2485 Core 1834 | . 17 80 . 62 217 81 506 . 103 110 658 Absorbed by Shields 387 | . . . . . . . . . . 248 139 Ignored by Resistances 17 | . . . . . 17 . . . . . . Regen/Repaired (Parts) 110 | . 27 . . . . . . . 83 . . Core Remaining (%) 53 | 100 . . . 36 60 . . 16 . . . Volleys Fired 337 | 8 33 24 . 18 114 . 1 6 68 38 27 Largest 3 | 2 2 2 . 2 2 . 1 2 3 3 3 Hottest 137 | 60 70 70 . 85 124 . 48 66 130 137 104 Shots Fired 675 | 16 55 48 . 35 209 . 1 12 149 106 44 Gun 582 | 16 53 48 . 25 176 . . 12 123 104 25 Cannon 87 | . 2 . . 10 33 . 1 . 26 . 15 Launcher 6 | . . . . . . . . . . 2 4 Special . | . . . . . . . . . . . . Kinetic 449 | 8 33 24 . 18 104 . 1 12 139 70 40 Thermal 220 | 8 22 24 . 17 105 . . . 10 34 . Explosive 6 | . . . . . . . . . . 2 4 Electromagnetic . | . . . . . . . . . . . . Robot Hit Streak 23 | 6 9 4 . 4 16 . 2 4 8 23 6 Robot Miss Streak 12 | 2 4 5 . 3 3 . . 3 11 7 12 Penetration Max . | . . . . . . . . . . . . Secondary Targets 5 | . . 1 . . 1 . . . 1 2 . Max Gunslinging Chain 1 | . . 1 . . 1 . . . 1 1 . Shots Hit Robots 475 | 11 30 24 . 19 167 4 7 7 90 82 34 Core Hits 285 | 5 14 8 . 6 73 . 3 3 59 65 49 Critical Kills 2 | . . . . . . . 1 . . 1 . Critical Parts Destroyed 1 | . . . . . . 1 . . . . . Critical Strikes 12 | . 1 1 . . 7 1 1 . . 1 . Burn 5 | . 1 1 . . 3 . . . . . . Destroy 1 | . . . . . . . . . . 1 . Blast 1 | . . . . . 1 . . . . . . Smash 2 | . . . . . . 1 1 . . . . Sever 3 | . . . . . 3 . . . . . . Melee Attacks 58 | . . . . . 40 7 9 . 1 1 . Impact 16 | . . . . . . 7 9 . . . . Slashing 42 | . . . . . 40 . . . 1 1 . Piercing . | . . . . . . . . . . . . Sneak Attacks 7 | . . . . . 4 1 . . 1 1 . Combat Hostiles 1 | . . . . . 1 . . . . . . Follow-up Attacks . | . . . . . . . . . . . . Damage Inflicted 10251 | 123 366 299 . 308 3161 296 316 144 2011 1934 1293 Guns 6868 | 123 366 299 . 195 1518 . . 144 1926 1691 606 Cannons 818 | . . . . 113 416 . 25 . . . 264 Explosions 602 | . . . . . . . . . . 179 423 Melee 1963 | . . . . . 1227 296 291 . 85 64 . Ramming . | . . . . . . . . . . . . Kinetic 5639 | 67 202 175 . 184 890 . 25 144 1825 1257 870 Thermal 2047 | 56 164 124 . 124 1044 . . . 101 434 . Explosive 602 | . . . . . . . . . . 179 423 Electromagnetic . | . . . . . . . . . . . . Impact 587 | . . . . . . 296 291 . . . . Slashing 1376 | . . . . . 1227 . . . 85 64 . Piercing . | . . . . . . . . . . . . Highest Corruption 2 | . . . . . . . . . . 1 2 Average Corruption 1 | . . . . . . . . . . 1 1 Corruption Purged . | . . . . . . . . . . . . Corruption Blocked . | . . . . . . . . . . . . Overload Shots . | . . . . . . . . . . . . Overflow Damage 281 | . . . . . 35 123 54 . . 35 34 Projectiles 3 | . . . . . 3 . . . . . . Explosions 69 | . . . . . . . . . . 35 34 Melee 209 | . . . . . 32 123 54 . . . . Knockbacks 24 | . . . . 1 19 1 3 . . . . Impact 4 | . . . . . . 1 3 . . . . Kinetic 13 | . . . . 1 12 . . . . . . Secondary 7 | . . . . . 7 . . . . . . Self-Inflicted Damage 58 | . . . . . . . . . . . 58 Shots 1 | . . . . . . . . . . . 1 Rammed . | . . . . . . . . . . . . Targets Rammed . | . . . . . . . . . . . . Kicked . | . . . . . . . . . . . . Crushed . | . . . . . . . . . . . . Highest Temperature 336 | . 48 336 . 280 60 7 . . 330 319 316 Average Temperature 97 | . 20 128 . 115 16 3 . . 115 106 151 Received Heat Transfer 2984 | . 51 156 . 258 1053 321 . . 315 440 390 Effects 17 | . . 4 . 2 . . . . 2 8 1 Shutdowns 1 | . . 1 . . . . . . . . . Energy Bleed 7 | . . 1 . 1 . . . . 2 2 1 Interference 9 | . . 2 . 1 . . . . . 6 . Siege Activations . | . . . . . . . . . . . . Robots Corrupted . | . . . . . . . . . . . . Combat Hostiles . | . . . . . . . . . . . . Parts Fried 3 | . . . . . . 2 1 . . . . Impact Corruptions 7 | . . . . . . 4 3 . . . . Robots Melted . | . . . . . . . . . . . . Combat Hostiles . | . . . . . . . . . . . . Parts Melted 3 | 1 1 . . . 1 . . . . . . Heat Transferred 4945 | 125 460 444 . 370 2621 . . . 185 740 . Parts Sabotaged . | . . . . . . . . . . . . Parts Stolen . | . . . . . . . . . . . . Parts Stripped . | . . . . . . . . . . . . Power Chain Reactions . | . . . . . . . . . . . . Alert | -11 -10 -10 -10 -9 -8 -7 -7 -7 -6 -6 -6 ------- Run | Yrd Mat Min Exi Min Mat Fac Low Low Fac Ext Cet Peak Influence 418 | 20 142 157 . 45 418 202 . . 128 363 213 Initial 197 | . 13 27 . . 9 177 . . . 30 197 Average 107 | 7 60 112 . 15 144 117 . . 48 185 119 Maximum Alert Level 2 | . . . . . 2 1 . . . 1 1 Low Security (%) 84 | 100 100 100 . 100 72 80 . . 100 64 87 Level 1 14 | . . . . . 24 19 . . . 35 12 Level 2 1 | . . . . . 3 . . . . . . Level 3 . | . . . . . . . . . . . . Level 4 . | . . . . . . . . . . . . Level 5 . | . . . . . . . . . . . . High Security . | . . . . . . . . . . . . Max Security . | . . . . . . . . . . . . Squads Dispatched 14 | . 1 . . . 3 1 . . 5 4 . Investigation 6 | . . . . . 1 1 . . 1 3 . Extermination 3 | . . . . . . . . . 3 . . Reinforcement 4 | . 1 . . . 2 . . . . 1 . Assault . | . . . . . . . . . . . . Garrison 1 | . . . . . . . . . 1 . . Intercept . | . . . . . . . . . . . . Searches Triggered . | . . . . . . . . . . . . Construction Impeded . | . . . . . . . . . . . . Haulers Reinforced . | . . . . . . . . . . . . Active Scanning Responses . | . . . . . . . . . . . . Cargo Convoy Interrupts . | . . . . . . . . . . . . Stealth | -11 -10 -10 -10 -9 -8 -7 -7 -7 -6 -6 -6 --------- Run | Yrd Mat Min Exi Min Mat Fac Low Low Fac Ext Cet Distress Signals 8 | . 1 . . . 2 2 . . . 2 1 Communications Jammed . | . . . . . . . . . . . . Distress Signals . | . . . . . . . . . . . . Times Spotted 135 | . 14 6 . 4 51 7 4 . 14 30 5 Peak Tracking Total 5 | . 4 3 . 2 4 5 4 . 4 5 5 Tactical Retreats 9 | . 1 1 . 1 5 1 . . . . . Traps | -11 -10 -10 -10 -9 -8 -7 -7 -7 -6 -6 -6 ------- Run | Yrd Mat Min Exi Min Mat Fac Low Low Fac Ext Cet Traps Triggered 3 | . . . . . . 1 . . . 2 . Indirectly . | . . . . . . . . . . . . Trap Hack Attempts . | . . . . . . . . . . . . Triggered . | . . . . . . . . . . . . Disarmed . | . . . . . . . . . . . . Reprogrammed . | . . . . . . . . . . . . Reused . | . . . . . . . . . . . . Traps Extracted . | . . . . . . . . . . . . Installed . | . . . . . . . . . . . . Triggered 1 | . . . . . . . 1 . . . . Machines | -11 -10 -10 -10 -9 -8 -7 -7 -7 -6 -6 -6 ---------- Run | Yrd Mat Min Exi Min Mat Fac Low Low Fac Ext Cet Machines Disabled 7 | . . . . . 1 . . . 2 4 . Max in Single Turn 2 | . . . . . 1 . . . 1 2 . Machines Repaired . | . . . . . . . . . . . . Machines Dismantled . | . . . . . . . . . . . . Machines Sabotaged . | . . . . . . . . . . . . Overloaded Fab Kills . | . . . . . . . . . . . . Hacking | -11 -10 -10 -10 -9 -8 -7 -7 -7 -6 -6 -6 --------- Run | Yrd Mat Min Exi Min Mat Fac Low Low Fac Ext Cet Machines Accessed 40 | . 7 1 1 . 9 3 . 1 9 9 . Terminals 29 | . 5 1 . . 7 1 . . 6 9 . Fabricators 1 | . . . . . . 1 . . . . . Repair Stations 2 | . 1 . . . . . . . 1 . . Recycling Units 3 | . 1 . . . 1 1 . . . . . Scanalyzers 3 | . . . . . 1 . . . 2 . . Garrison Access . | . . . . . . . . . . . . Total Hacks 98 | . 18 4 1 . 29 7 . 1 23 15 . Successful 52 | . 10 1 1 . 17 2 . 1 14 6 . Failed 46 | . 8 3 . . 12 5 . . 9 9 . Catastrophic 13 | . 2 . . . 4 1 . . 2 4 . Database Lockouts . | . . . . . . . . . . . . Manual 30 | . 7 2 . . 12 2 . . 5 2 . Terminals 74 | . 15 4 . . 24 2 . . 14 15 . Fabricators 4 | . . . . . . 4 . . . . . Repair Stations 5 | . 2 . . . . . . . 3 . . Recycling Units 3 | . 1 . . . 1 1 . . . . . Scanalyzers 10 | . . . . . 4 . . . 6 . . Garrison Access . | . . . . . . . . . . . . Terminal Hacks 28 | . 5 1 1 . 9 . . 1 5 6 . Record 3 | . . . 1 . . . . . 2 . . Robot Analysis 2 | . 1 . . . . . . . 1 . . Prototype ID Bank 5 | . 2 . . . 3 . . . . . . Open Door 7 | . . . . . . . . 1 . 6 . Open DSF 1 | . . . . . . . . . 1 . . Branch Access Points 1 | . 1 . . . . . . . . . . Emergency Access Points 1 | . 1 . . . . . . . . . . Terminal Index 1 | . . . . . 1 . . . . . . Alert Level 3 | . . . . . 2 . . . 1 . . Unreport Threat 1 | . . . . . 1 . . . . . . Zone Layout 3 | . . 1 . . 2 . . . . . . Fabricator Hacks 2 | . . . . . . 2 . . . . . Network Status 2 | . . . . . . 2 . . . . . Repair Station Hacks 4 | . 2 . . . . . . . 2 . . Scan Component 2 | . 1 . . . . . . . 1 . . Repair 2 | . 1 . . . . . . . 1 . . Recycling Unit Hacks 2 | . 1 . . . 1 . . . . . . Retrieve Components 2 | . 1 . . . 1 . . . . . . Scanalyzer 10 | . . . . . 4 . . . 6 . . Insert Component 5 | . . . . . 2 . . . 3 . . Analyze 5 | . . . . . 2 . . . 3 . . Garrison Access Hacks . | . . . . . . . . . . . . Unauthorized Hacks 6 | . 2 . . . 3 . . . 1 . . Terminals 6 | . 2 . . . 3 . . . 1 . . Botnet 6 | . 2 . . . 3 . . . 1 . . Fabricators . | . . . . . . . . . . . . Repair Stations . | . . . . . . . . . . . . Recycling Units . | . . . . . . . . . . . . Scanalyzers . | . . . . . . . . . . . . Garrison Access . | . . . . . . . . . . . . Data Cores Recovered 1 | . . . . . 1 . . . . . . Used . | . . . . . . . . . . . . Hacking Detections 31 | . 5 1 . . 8 3 . . 8 6 . Full Trace Events 6 | . . . . . 1 1 . . 1 3 . Feedback Events 1 | . . . . . . . . . . 1 . Corruption 1 | . . . . . . . . . . 1 . Feedback Blocked . | . . . . . . . . . . . . Robot Schematics Acquired . | . . . . . . . . . . . . Robots Built . | . . . . . . . . . . . . Authchips . | . . . . . . . . . . . . Time . | . . . . . . . . . . . . Total Robot Build Rating . | . . . . . . . . . . . . Part Schematics Acquired 5 | . . . . . 2 . . . 3 . . Parts Built . | . . . . . . . . . . . . Authchips . | . . . . . . . . . . . . Time . | . . . . . . . . . . . . Total Part Build Rating . | . . . . . . . . . . . . Parts Repaired 2 | . 1 . . . . . . . 1 . . Time 76 | . 26 . . . . . . . 50 . . Parts Recycled . | . . . . . . . . . . . . Recycled Matter . | . . . . . . . . . . . . Retrieved Matter . | . . . . . . . . . . . . Retrieved Components 12 | . 10 . . . 2 . . . . . . Parts Scanalyzed 5 | . . . . . 2 . . . 3 . . Part Schematics Acquired 5 | . . . . . 2 . . . 3 . . Parts Damaged . | . . . . . . . . . . . . Bothacking | -11 -10 -10 -10 -9 -8 -7 -7 -7 -6 -6 -6 ------------ Run | Yrd Mat Min Exi Min Mat Fac Low Low Fac Ext Cet Used RIF Installer . | . . . . . . . . . . . . Robots Hacked . | . . . . . . . . . . . . Non-combat . | . . . . . . . . . . . . Combat . | . . . . . . . . . . . . Robot Hacks Applied . | . . . . . . . . . . . . Relay Couplers Released . | . . . . . . . . . . . . Fabnet Peak Effective % . | . . . . . . . . . . . . Robots Rewired 15 | . . . . . . . . . . 15 . Allies Hacked . | . . . . . . . . . . . . Hacks Repelled . | . . . . . . . . . . . . Allies | -11 -10 -10 -10 -9 -8 -7 -7 -7 -6 -6 -6 -------- Run | Yrd Mat Min Exi Min Mat Fac Low Low Fac Ext Cet Total Allies 26 | . . 2 . . . . . . . 24 . Largest Group 10 | . . 2 2 . . . . . . 10 4 Highest-Rated Group 443 | . . 41 41 . . . . . . 443 113 Highest-Rated Ally 159 | . . 31 31 . . . . . . 159 39 Total Orders . | . . . . . . . . . . . . Ally Attacks 153 | . . . . . . . . . . 148 5 Total Damage 2814 | . . . . . . . . . . 2739 75 Kills 27 | . . . . . . . . . . 27 . Allies Corrupted . | . . . . . . . . . . . . Allies Melted 1 | . . . . . . . . 1 . . . Intel | -11 -10 -10 -10 -9 -8 -7 -7 -7 -6 -6 -6 ------- Run | Yrd Mat Min Exi Min Mat Fac Low Low Fac Ext Cet Robot Analysis Total 2 | . 1 . . . . . . . 1 . . Derelict Logs Recovered 5 | . . 1 . 1 . . 1 2 . . . Drone Launches . | . . . . . . . . . . . . Drone Recoveries . | . . . . . . . . . . . . Exploration | -11 -10 -10 -10 -9 -8 -7 -7 -7 -6 -6 -6 ------------- Run | Yrd Mat Min Exi Min Mat Fac Low Low Fac Ext Cet Turns Passed 9241 | 175 1005 447 257 182 2215 643 850 767 1574 1022 104 Spaces Moved 5195 | 108 487 225 159 77 1048 355 655 728 782 550 21 Core 216 | 33 . . . . . . 180 . 3 . . Treads 1717 | 16 330 225 159 77 384 208 143 . 175 . . Legs 296 | 59 157 . . . 55 . . 20 5 . . Wheels 1761 | . . . . . 609 . 332 708 110 . 2 Hover 1205 | . . . . . . 147 . . 489 550 19 Flight . | . . . . . . . . . . . . Fastest Speed 50 | 50 120 160 160 160 105 152 80 80 95 102 102 Average Speed 132 | 118 151 160 160 160 134 160 121 99 151 104 110 Slowest Speed 1300 | 250 240 160 160 160 330 240 250 130 1300 105 210 Overloaded Moves . | . . . . . . . . . . . . Propulsion Burnouts . | . . . . . . . . . . . . Robots Hopped . | . . . . . . . . . . . . Cave-ins Triggered 1 | . . . . . . . . . . . 1 Exploration Rate (%) 43 | 7 73 56 50 27 58 10 77 62 20 67 13 Regions Visited 11 Branch Regions 7 Pre-discovered Areas 2 | . . . 1 . . . 1 . . . . Known Exits Taken 6 | . 1 . . . . 1 1 1 1 1 . Unknown Exits Taken 5 | 1 . 1 1 1 1 . . . . . . Scrap Searched 3 | . . . . . . . 2 1 . . . Spaces Dug 9 | . . . . . 1 1 . . 7 . . Terrain Destroyed 117 | . . . . . 1 1 . . 28 22 65 Melee 2 | . . . . . 1 1 . . . . . Projectile 22 | . . . . . . . . . 18 2 2 AOE 93 | . . . . . . . . . 10 20 63 Terrain Rammed . | . . . . . . . . . . . . Walls Destroyed . | . . . . . . . . . . . . Machines Disabled . | . . . . . . . . . . . . Actions | -11 -10 -10 -10 -9 -8 -7 -7 -7 -6 -6 -6 --------- Run | Yrd Mat Min Exi Min Mat Fac Low Low Fac Ext Cet Total 6868 | 134 706 265 162 101 1590 421 692 753 1064 917 63 Wait 713 | 3 136 14 4 3 275 39 5 . 147 85 2 Move 5184 | 107 486 224 158 76 1047 354 654 727 781 549 21 Hop . | . . . . . . . . . . . . Pick Up 100 | 7 18 1 . . 26 4 6 12 18 8 . Fast Attach 67 | 7 3 . . 1 23 2 7 3 16 5 . Attach 39 | . 1 1 . 2 12 6 1 1 2 2 11 Detach 16 | . 3 . . 1 1 4 2 . 3 2 . Swap 56 | 2 10 . . . 13 1 . 2 11 15 2 Drop 101 | . 16 1 . . 39 4 7 2 17 15 . Fire 337 | 8 33 24 . 18 114 . 1 6 68 38 27 Melee 58 | . . . . . 40 7 9 . 1 1 . Ram . | . . . . . . . . . . . . Kick . | . . . . . . . . . . . . Crush . | . . . . . . . . . . . . Escape Stasis 26 | . . . . . . . . . . 26 . Rewire 171 | . . . . . . . . . . 171 . Trap . | . . . . . . . . . . . . Miscellaneous . | . . . . . . . . . . . . Route ------- -11/Scrapyard -10/Materials (discovered 3 exits: [*Mat x2] / *Min) -10/Mines (discovered 2 exits: [*Mat] / *Exi) -10/Exiles (discovered 2 exits: [*Min x2]) -9/Mines -8/Materials -7/Factory (discovered 2 exits: *Sto / *Low) -7/Lower Caves -7/Lower Caves -6/Factory (discovered 3 exits: Fac / Low / *Ext) -6/Extension (discovered 3 exits: *Fac x2 / *Cet) -6/Cetus History --------- Turn | Location | Event 3 | -11/Scrapyard | Discovered new exit (range 15) 176 | -11/Scrapyard | Entered Materials 309 | -10/Materials | Build established: Mutant 411 | -10/Materials | Identified exit to Mines 585 | -10/Materials | Discovered new exit (range 15) 843 | -10/Materials | Discovered new exit (range 16) 928 | -10/Materials | Repaired Assault Rifle 1181 | -10/Materials | Entered Mines 1262 | -10/Mines | Learned Materials garrison access intel 1523 | -10/Mines | Discovered new exit (range 15) 1621 | -10/Mines | Deemed a non-threat by the Exiles lab entrance 1621 | -10/Mines | Discovered new exit (range 5) 1628 | -10/Mines | Entered Exiles 1628 | -10/Exiles | Found Exiles lab destroyed 1628 | -10/Exiles | Accompanied by 2 allies 1649 | -10/Exiles | Discovered new exit (range 15) 1658 | -10/Exiles | Led the pair of lost Derelicts to a safe place 1810 | -10/Exiles | Learned location of Zion (-6) 1868 | -10/Exiles | Discovered new exit (range 12) 1885 | -10/Exiles | Entered Mines 1969 | -9/Mines | Core integrity fell below 50% 2025 | -9/Mines | Learned Materials trap positions 2057 | -9/Mines | Discovered new exit (range 7) 2067 | -9/Mines | Entered Materials 2067 | -8/Materials | Evolved 4 slots: Propulsion x2, Utility x2 2068 | -8/Materials | Loaded intel: 12 trap records 2069 | -8/Materials | Loaded intel: 1 garrison access location 2312 | -8/Materials | Lost 3 parts (2n1w) 2537 | -8/Materials | Lost 4 parts (1n1u2w) 2625 | -8/Materials | Build established: Scavenger-Mutant 3643 | -8/Materials | Build established: Mutant 3984 | -8/Materials | Discovered new exit (range 5) 4180 | -8/Materials | Build established: Scavenger-Mutant 4282 | -8/Materials | Entered Factory 4282 | -7/Factory | Evolved 2 slots: Propulsion x1, Utility x1 4330 | -7/Factory | Discovered new exit (range 15) 4535 | -7/Factory | Discovered new exit (range 10) 4564 | -7/Factory | Identified exit to Storage 4923 | -7/Factory | Identified exit to Lower Caves 4925 | -7/Factory | Entered Lower Caves 4953 | -7/Lower Caves | Lost 4 parts (4n) 5195 | -7/Lower Caves | Build established: Mutant 5289 | -7/Lower Caves | Core integrity fell below 50% 5309 | -7/Lower Caves | Core integrity fell below 20% 5346 | -7/Lower Caves | Lost 5 parts (1p1n2u1w) 5684 | -7/Lower Caves | Discovered new exit (range 7) 5687 | -7/Lower Caves | Identified exit to Lower Caves 5775 | -7/Lower Caves | Entered another Lower Caves area 5985 | -7/Lower Caves | Learned 8 Factory zone layouts 6083 | -7/Lower Caves | Build established: Skirmisher 6392 | -7/Lower Caves | Build established: Scavenger-Skirmisher 6473 | -7/Lower Caves | Discovered new exit (range 5) 6477 | -7/Lower Caves | Identified exit to Factory 6542 | -7/Lower Caves | Entered Factory 6542 | -6/Factory | Evolved 2 slots: Power x1, Weapon x1 6543 | -6/Factory | Identified exit to Lower Caves 6544 | -6/Factory | Identified exit to Extension 6544 | -6/Factory | Identified exit to Factory 6725 | -6/Factory | Garrison activated, responded to threat 6788 | -6/Factory | Lost 6 parts (5n1u) 7605 | -6/Factory | Repaired Bore Cannon 8116 | -6/Factory | Entered Extension 8498 | -6/Extension | Rescued a captive Derelict 8499 | -6/Extension | Rescued a captive Derelict 8517 | -6/Extension | Rescued A7 8521 | -6/Extension | Lost 4 allies 8538 | -6/Extension | Rescued a captive Derelict 8539 | -6/Extension | Rescued a captive Derelict 8552 | -6/Extension | Rescued a captive Derelict 8553 | -6/Extension | Rescued a captive Derelict 8574 | -6/Extension | Spotted B-75 Beast 8592 | -6/Extension | Spotted B-75 Beast 8614 | -6/Extension | Allies destroyed B-75 Beast 8627 | -6/Extension | Allies destroyed B-75 Beast 8631 | -6/Extension | Extracted ID and sensor layout for unrecognized location from A7's data core 8644 | -6/Extension | Discovered exit to Factory (range 3) 8693 | -6/Extension | Lost 9 allies 8788 | -6/Extension | Discovered new exit (range 16) 8789 | -6/Extension | Discovered exit to Factory (range 15) 8898 | -6/Extension | Build established: Scavenger-Tank 8991 | -6/Extension | Rescued a captive Derelict 8992 | -6/Extension | Rescued a captive Derelict 9125 | -6/Extension | Disrupted transfer network 9128 | -6/Extension | Lost 4 allies 9137 | -6/Extension | Identified exit to Cetus 9138 | -6/Extension | Entered Cetus 9138 | -6/Cetus | Accompanied by 4 allies 9157 | -6/Cetus | Spotted Cetus Guard 9157 | -6/Cetus | Spotted Cetus Guard 9159 | -6/Cetus | Spotted Cetus Guard 9166 | -6/Cetus | Spotted Cetus Guard 9206 | -6/Cetus | Destroyed Cetus Guard 9209 | -6/Cetus | Lost 4 allies 9210 | -6/Cetus | Crushed by falling debris 9211 | -6/Cetus | Core integrity fell below 50% 9215 | -6/Cetus | Destroyed Cetus Guard 9226 | -6/Cetus | Core integrity fell below 20% 9242 | -6/Cetus | Destroyed by Cetus Guard with Advanced KE Penetrator Last Messages --------------- 09218_ Slug penetrates Earth. 09221_ Penetrated by Slug. 09223_ The unstable cave ceiling collapses. 09224_ Penetrated by Slug. 09226_ Acquired 15 matter. 09226_ Acquired 45 matter. 09226_ Acquired 6 matter. 09227_ Penetrated by Slug. 09229_ Arm. Wheel destroyed. 09229_ Penetrated by Slug. 09229_ Critical hit (Destroy). 09229_ Fission Core destroyed. 09230_ Penetrated by Slug. 09233_ The unstable cave ceiling collapses. 09233_ Slug penetrates Earth. 09235_ Penetrated by Slug. 09237_ The unstable cave ceiling collapses. 09239_ Penetrated by Slug. 09240_ The unstable cave ceiling collapses. 09241_ Penetrated by Slug. Map ----- +----------------------------------------------------+ | ??????????????????????????????????????? | | ??????????????????????????????????????? | | ??????????????????????????????????????? | | ??????????????????????????????????????? | | ??????????????????????????????????????? | | ??????????????????????????????????????? | | ??????????????????????????????????????? | | ??????????????????????????????????????? | | ??????????????????????????????????????? | | ??????????????????????????????????????? | | ??????????????????????????????????????? | | ??????????????????????????????????????? | | ??????????????????????????????????????? | | ??????????????????????????????????????? | | ??????????????????????????????????????? | | ??????????????????????????#???????????? | | ????????????????????????? #???????????? | | ???????????????????????? #???????????? | | ??????????????????????? #???????????? | | ?????????????????????## ####????????? | | ????????????????????# #????????? | | ?????????????####### % ##????????? | | ?######;####### #% ## ### #??? | | ?# = Y%% % ?? | | ?# % % ?? | | ?# @ = *= Y % ?? | | ?############ ### #??? | | ??????????? # # # #????????? | | ?????????# # #????????? | | ???????# # # ##### #######????????? | | ???????## ########????????????????????? | | ????????##????????????????????????????? | | ??????????????????????????????????????? | | ??????????????????????????????????????? | | ??????????????????????????????????????? | | ??????????????????????????????????????? | | ??????????????????????????????????????? | | ??????????????????????????????????????? | | ??????????????????????????????????????? | | ??????????????????????????????????????? | | ??????????????????????????????????????? | | ??????????????????????????????????????? | | ??????????????????????????????????????? | | ??????????????????????????????????????? | | ??????????????????????????????????????? | | ??????????????????????????????????????? | | ??????????????????????????????????????? | | ??????????????????????????????????????? | | ??????????????????????????????????????? | | ??????????????????????????????????????? | +----------------------------------------------------+ Best States ------------- Heat Dissipation 56 Energy Generation 33 Energy Capacity 715 Matter Stores 300 Matter Capacity 300 Sight Range 20 Robot Scan Range 15 Terrain Scan Density 10 Armor Coverage 150 Resistance: KI 20 Weapon Cycling 15 Evasion (%) 55 Targeting Accuracy 6 Recoil Reduction 4 Kinecelleration 30 Offensive Hacking 11 Item Schematics ----------------- Imp. Light Armor Plating | -8/Materials | Scanalyzed Imp. Hover Unit | -8/Materials | Scanalyzed Gravmag Array | -6/Factory | Scanalyzed Imp. Sensor Array | -6/Factory | Scanalyzed Hpw. Tractor Beam | -6/Factory | Scanalyzed Robot Schematics ------------------ None Fabricated ------------ Nothing Alien Tech Used ----------------- None Achievements -------------- More Dakka Please Challenges ------------ None Game ------ Seed BlastCoordinationChip Manual? 0 Play Time 01:32:08 Cumulative 50.7 hours Start 2024.05.05 @ 02:35:38 End 2024.06.03 @ 14:52:21 Sessions 7 Manual Loads 0 Difficulty Rogue Special Mode None Game No. 33 Rogue 33 Adventurer 0 Explorer 0 Win Type - Total 0 Types 0/0/0/0/0/0/0/0/0 Lore% 30 Gallery% 45 Achievement% 35 Wizard Run 0 Options --------- Layout 2 ASCII 0 Keyboard 1 Movement Numpad Keybinds 0 Fullscreen 2 Font 24/Smallcaps Map View 50x49 Zoom Use 0% Tactical HUD 1 Map Filters NONE Filters NONE Steam 1 RUN: 4dfeb79d-2383-4929-b3e9-67b14e29b683